[Event "Nordic Chess-ch 2019"]
[Site "Sarpsborg"]
[Date "2019.06.26"]
[Round "8.14"]
[White "Abdrlauf, Elham"]
[Black "Tunge, Christian"]
[Result "*"]
[ECO "B35"]
[WhiteElo "2207"]
[BlackElo "2027"]
[Annotator "NA RC"]
[PlyCount "97"]
[EventDate "2019.06.21"]
[EventType "swiss"]
[EventCountry "NOR"]
[SourceTitle "playchess.com"]
[Source "ChessBase"]
[SourceQuality "1"]
[TimeControl "40/5400+30:1800+30"]

1. e4 {[%emt 0:00:00]} c5 {[%emt 0:00:28]} 2. Nf3 {[%emt 0:00:22]} g6 {[%emt 0:01:23]} 3. d4 {[%emt 0:02:48]} cxd4 {[%emt 0:00:34]} 4. Nxd4 {[%emt 0:00:14]} Nc6 {[%emt 0:01:06]} 5. Nc3 {[%emt 0:04:54]} Bg7 {[%emt 0:00:54]} 6. Be3 {[%emt 0:01:30]} Nf6 {[%emt 0:00:34]} 7. Bc4 {[%emt 0:00:58]} Qa5 {[%emt 0:00:29]} 8. O-O {[%emt 0:08:06]} O-O {[%emt 0:00:15]} 9. a3 {[%emt 0:10:03]} d6 {[%emt 0:14:21]} 10. h3 {[%emt 0:13:22]} Bd7 {[%emt 0:01:32]} 11. f4 {[%emt 0:04:12]} Nxd4 {[%emt 0:09:37]} 12. Bxd4 {[%emt 0:00:25]} Bc6 {[%emt 0:00:14]} 13. b4 {[%emt 0:14:04]} Qc7 {[%emt 0:16:34]} 14. Qe2 {[%emt 0:00:29]} e5 {[%emt 0:06:55]} 15. fxe5 {[%emt 0:00:43]} Nxe4 {[%emt 0:11:39]} 16. Nxe4 {[%emt 0:10:48]} Bxe4 {[%emt 0:31:25]} 17. Bxf7+ {[%emt 0:25:32]} Rxf7 {[%emt 0:00:00]} 18. Qxe4 {[%emt 0:00:30]} dxe5 {[%emt 0:01:00]} 19. Bc5 {[%emt 0:00:30]} Rd8 {[%emt 0:00:30]} 20. Rxf7 {[%emt 0:00:00]} Qxf7 {[%emt 0:00:00]} 21. Bxa7 Qd5 {[%emt 0:01:00]} 22. Qxd5+ {[%emt 0:00:00]} Rxd5 {[%emt 0:00:00]} 23. Be3 e4 {[%emt 0:01:00]} 24. Re1 {[%emt 0:02:30]} b5 {[%emt 0:00:30]} 25. Bc5 {[%emt 0:00:30]} Bd4+ {[%emt 0:00:00]} 26. Bxd4 {[%emt 0:00:30]} Rxd4 {[%emt 0:01:00]} 27. Kf2 {[%emt 0:00:30]} Rc4 {[%emt 0:00:30]} 28. Re2 {[%emt 0:00:30]} Kf7 {[%emt 0:00:30]} 29. Ke3 {[%emt 0:00:30]} Ke6 {[%emt 0:00:30]} 30. Kf4 {[%emt 0:00:30]} g5+ {[%emt 0:00:00]} 31. Kxg5 {[%emt 0:00:00]} Ke5 {[%emt 0:01:00]} 32. h4 {[%emt 0:01:00]} Rc6 {[%emt 0:00:00]} 33. h5 {[%emt 0:00:00]} h6+ {[%emt 0:00:00]} 34. Kg4 {[%emt 0:00:00]} Rc3 {[%emt 0:00:00]} 35. Rd2 {[%emt 0:00:39]} Rxa3 {[%emt 0:00:18]} 36. Rd8 {[%emt 0:00:14]} Rc3 {[%emt 0:00:08]} 37. Re8+ {[%emt 0:00:09]} Kd4 {[%emt 0:00:13]} 38. Kf4 {[%emt 0:00:23]} Rxc2 {[%emt 0:01:39]} 39. Rd8+ {[%emt 0:00:27]} Kc3 {[%emt 0:00:21]} 40. Rc8+ {[%emt 0:00:04]} Kd3 {[%emt 0:00:05]} 41. Rxc2 {[%emt 0:30:07]} Kxc2 {[%emt 0:30:04]} 42. Kxe4 {[%emt 0:00:04]} Kc3 {[%emt 0:00:04]} 43. g4 {[%emt 0:00:03]} Kxb4 {[%emt 0:00:46]} 44. g5 {[%emt 0:00:09]} hxg5 {[%emt 0:00:00]} 45. h6 {[%emt 0:00:00]} Ka3 {[%emt 0:00:00]} 46. h7 {[%emt 0:00:00]} b4 {[%emt 0:00:00]} 47. h8=Q {[%emt 0:00:00]} Ka2 {[%emt 0:00:00]} 48. Kd3 {[%emt 0:00:00]} b3 {[%emt 0:00:00]} 49. Kc3 {[%emt 0:00:00]} *

[Event "Nordic Chess-ch 2019"]
[Site "Sarpsborg"]
[Date "2019.06.26"]
[Round "8.19"]
[White "Fernandez, Juan Pablo"]
[Black "Asbjornsen, Jakob"]
[Result "1-0"]
[ECO "A20"]
[WhiteElo "2066"]
[BlackElo "1359"]
[Annotator "NA RC"]
[PlyCount "47"]
[EventDate "2019.06.21"]
[EventType "swiss"]
[EventCountry "NOR"]
[SourceTitle "playchess.com"]
[Source "ChessBase"]
[SourceQuality "1"]
[TimeControl "40/5400+30:1800+30"]

1. c4 {[%emt 0:00:00]} e5 {[%emt 0:00:00]} 2. g3 {[%emt 0:00:00]} Nf6 {[%emt 0:00:00]} 3. Bg2 {[%emt 0:00:00]} d5 {[%emt 0:00:14]} 4. cxd5 {[%emt 0:00:08]} Nxd5 {[%emt 0:00:14]} 5. Nf3 {[%emt 0:00:07]} Nc6 {[%emt 0:00:27]} 6. O-O {[%emt 0:00:13]} Be7 {[%emt 0:00:22]} 7. d4 {[%emt 0:00:19]} exd4 {[%emt 0:01:27]} 8. Nxd4 {[%emt 0:00:34]} Nxd4 {[%emt 0:01:18]} 9. Qxd4 {[%emt 0:00:07]} Nb6 {[%emt 0:00:52]} 10. Qxg7 {[%emt 0:00:46]} Bf6 {[%emt 0:01:44]} 11. Qh6 {[%emt 0:00:51]} Na4 {[%emt 0:03:36]} 12. Nc3 {[%emt 0:06:39]} Nxc3 {[%emt 0:01:15]} 13. bxc3 {[%emt 0:00:11]} Qe7 {[%emt 0:03:10]} 14. Ba3 {[%emt 0:08:17]} Bg5 {[%emt 0:08:18]} 15. Bxe7 {[%emt 0:04:14]} Bxh6 {[%emt 0:00:11]} 16. Bf6 {[%emt 0:00:09]} Rg8 {[%emt 0:01:19]} 17. Rfd1 {[%emt 0:02:52]} Bd7 {[%emt 0:02:40]} 18. Bxb7 {[%emt 0:04:48]} Rb8 {[%emt 0:01:11]} 19. Be4 {[%emt 0:02:25]} Bg7 {[%emt 0:03:19]} 20. Bxh7 {[%emt 0:03:30]} Bxf6 {[%emt 0:00:18]} 21. Bxg8 {[%emt 0:00:17]} Bf5 {[%emt 0:00:28]} 22. e4 {[%emt 0:29:29]} Bg6 {[%emt 0:06:42]} 23. e5 {[%emt 0:00:21]} Bg7 {[%emt 0:01:19]} 24. e6 {[%emt 0:00:30]} 1-0

[Event "Nordic Chess-ch 2019"]
[Site "Sarpsborg"]
[Date "2019.06.26"]
[Round "8.20"]
[White "Neretljak, Nedzad"]
[Black "Johansen, Kolbjorn-Albin"]
[Result "*"]
[ECO "B12"]
[WhiteElo "2114"]
[BlackElo "1690"]
[Annotator "NA RC"]
[PlyCount "107"]
[EventDate "2019.06.21"]
[EventType "swiss"]
[EventCountry "NOR"]
[SourceTitle "playchess.com"]
[Source "ChessBase"]
[SourceQuality "1"]
[TimeControl "40/5400+30:1800+30"]

1. e4 {[%emt 0:00:00]} c6 {[%emt 0:00:00]} 2. d4 {[%emt 0:00:00]} d5 {[%emt 0:00:00]} 3. e5 {[%emt 0:00:00]} Bf5 {[%emt 0:00:09]} 4. Ne2 {[%emt 0:00:00]} e6 {[%emt 0:02:27]} 5. Ng3 {[%emt 0:00:06]} Bg6 {[%emt 0:00:19]} 6. h4 {[%emt 0:00:05]} h6 {[%emt 0:01:11]} 7. Bd3 {[%emt 0:01:06]} Bxd3 {[%emt 0:01:27]} 8. Qxd3 {[%emt 0:00:08]} h5 {[%emt 0:09:30]} 9. Nd2 {[%emt 0:00:44]} g6 {[%emt 0:04:24]} 10. Nf3 {[%emt 0:00:12]} Qa5+ {[%emt 0:00:24]} 11. c3 {[%emt 0:04:05]} Qa6 {[%emt 0:00:15]} 12. Qxa6 {[%emt 0:05:46]} Nxa6 {[%emt 0:00:21]} 13. Bg5 {[%emt 0:00:08]} Be7 {[%emt 0:10:14]} 14. O-O {[%emt 0:00:22]} Bxg5 {[%emt 0:03:26]} 15. Nxg5 {[%emt 0:00:26]} Ne7 {[%emt 0:05:53]} 16. Rfe1 {[%emt 0:01:36]} O-O {[%emt 0:10:27]} 17. Ne2 {[%emt 0:00:46]} Nf5 {[%emt 0:01:05]} 18. g3 {[%emt 0:00:18]} c5 {[%emt 0:06:17]} 19. Rad1 {[%emt 0:01:32]} cxd4 {[%emt 0:04:02]} 20. Nxd4 {[%emt 0:00:17]} Nxd4 {[%emt 0:11:47]} 21. Rxd4 {[%emt 0:00:08]} Rac8 {[%emt 0:00:07]} 22. Red1 {[%emt 0:00:27]} b5 {[%emt 0:04:41]} 23. g4 {[%emt 0:04:45]} Rc4 {[%emt 0:04:46]} 24. gxh5 {[%emt 0:01:27]} gxh5 {[%emt 0:00:19]} 25. R1d3 {[%emt 0:03:39]} Rxd4 {[%emt 0:03:08]} 26. cxd4 {[%emt 0:02:53]} Rc8 {[%emt 0:01:42]} 27. Rg3 {[%emt 0:00:47]} Kf8 {[%emt 0:01:51]} 28. Nh7+ {[%emt 0:01:01]} Ke7 {[%emt 0:00:11]} 29. Nf6 {[%emt 0:00:52]} Nb4 {[%emt 0:05:41]} 30. Nxh5 {[%emt 0:01:16]} Rh8 {[%emt 0:00:47]} 31. Nf6 {[%emt 0:00:10]} Nc6 {[%emt 0:02:40]} 32. Rg4 {[%emt 0:01:00]} Nb8 {[%emt 0:01:43]} 33. Rf4 {[%emt 0:01:33]} Rf8 {[%emt 0:01:56]} 34. Rg4 {[%emt 0:15:39]} Rh8 {[%emt 0:00:48]} 35. Kg2 {[%emt 0:09:35]} Nd7 {[%emt 0:00:30]} 36. Nxd7 {[%emt 0:00:40]} Kxd7 {[%emt 0:00:01]} 37. Kg3 {[%emt 0:00:37]} Ke7 {[%emt 0:00:50]} 38. Rg5 {[%emt 0:01:32]} a5 {[%emt 0:01:45]} 39. h5 {[%emt 0:00:10]} Rc8 {[%emt 0:01:10]} 40. Kg2 {[%emt 0:05:04]} b4 {[%emt 0:00:14]} 41. Kf3 {[%emt 0:32:17]} a4 {[%emt 0:14:06]} 42. h6 {[%emt 0:00:00]} Rh8 {[%emt 0:04:37]} 43. Rh5 {[%emt 0:00:00]} Rh7 {[%emt 0:02:08]} 44. Kg4 {[%emt 0:00:00]} f6 {[%emt 0:02:54]} 45. Rh1 {[%emt 0:00:00]} fxe5 {[%emt 0:04:50]} 46. dxe5 {[%emt 0:00:00]} Kf8 {[%emt 0:02:17]} 47. Kg5 {[%emt 0:40:21]} Kg8 {[%emt 0:00:51]} 48. Rc1 {[%emt 0:00:00]} Rf7 {[%emt 0:00:38]} 49. Kg6 {[%emt 0:00:00]} Rf8 {[%emt 0:00:28]} 50. f4 {[%emt 0:00:00]} d4 {[%emt 0:01:55]} 51. Rc6 {[%emt 0:00:00]} b3 {[%emt 0:01:37]} 52. axb3 {[%emt 0:00:00]} axb3 {[%emt 0:00:06]} 53. Rd6 {[%emt 0:00:00]} Rxf4 {[%emt 0:00:57]} 54. Rd8+ {[%emt 0:00:00]} *

[Event "Nordic Chess-ch 2019"]
[Site "Sarpsborg"]
[Date "2019.06.26"]
[Round "8.23"]
[White "Stellas, Dimitrios"]
[Black "Jashari, Driton"]
[Result "*"]
[ECO "D02"]
[WhiteElo "1976"]
[BlackElo "1755"]
[Annotator "NA RC"]
[PlyCount "83"]
[EventDate "2019.06.21"]
[EventType "swiss"]
[EventCountry "NOR"]
[SourceTitle "playchess.com"]
[Source "ChessBase"]
[SourceQuality "1"]
[TimeControl "40/5400+30:1800+30"]

1. d4 {[%emt 0:01:45]} Nf6 {[%emt 0:00:00]} 2. Bf4 {[%emt 0:00:42]} e6 {[%emt 0:03:56]} 3. e3 {[%emt 0:00:58]} c5 {[%emt 0:01:00]} 4. Nd2 {[%emt 0:03:15]} d5 {[%emt 0:06:06]} 5. c3 {[%emt 0:00:59]} Nc6 {[%emt 0:06:11]} 6. Ngf3 {[%emt 0:00:47]} Be7 {[%emt 0:01:39]} 7. h3 {[%emt 0:00:45]} O-O {[%emt 0:00:15]} 8. Bd3 {[%emt 0:02:31]} cxd4 {[%emt 0:10:49]} 9. exd4 {[%emt 0:01:34]} Nh5 {[%emt 0:00:55]} 10. Bh2 {[%emt 0:03:17]} g6 {[%emt 0:00:57]} 11. Ne5 {[%emt 0:04:57]} Bg5 {[%emt 0:15:09]} 12. Ndf3 {[%emt 0:10:04]} Bh6 {[%emt 0:02:50]} 13. Ng4 {[%emt 0:03:58]} Bg7 {[%emt 0:00:24]} 14. Qd2 {[%emt 0:00:37]} a6 {[%emt 0:01:48]} 15. Nfe5 {[%emt 0:04:02]} f5 {[%emt 0:03:01]} 16. Nh6+ {[%emt 0:01:52]} Bxh6 {[%emt 0:00:01]} 17. Qxh6 {[%emt 0:00:18]} Qe7 {[%emt 0:02:46]} 18. O-O-O {[%emt 0:04:12]} Qg7 {[%emt 0:00:11]} 19. Qd2 {[%emt 0:01:43]} Ne7 {[%emt 0:01:37]} 20. g4 {[%emt 0:01:45]} Nf6 {[%emt 0:00:03]} 21. f3 {[%emt 0:00:22]} b5 {[%emt 0:00:11]} 22. Kb1 {[%emt 0:03:50]} Nd7 {[%emt 0:01:04]} 23. Nxd7 {[%emt 0:01:17]} Bxd7 {[%emt 0:00:02]} 24. Be5 {[%emt 0:01:18]} Qf7 {[%emt 0:00:04]} 25. g5 {[%emt 0:01:18]} Rfe8 {[%emt 0:00:19]} 26. h4 {[%emt 0:01:03]} Nc6 {[%emt 0:00:11]} 27. Bf6 {[%emt 0:00:54]} e5 {[%emt 0:00:05]} 28. h5 {[%emt 0:06:44]} Re6 {[%emt 0:01:42]} 29. hxg6 {[%emt 0:00:40]} Qxg6 {[%emt 0:00:02]} 30. Rh6 {[%emt 0:02:00]} Rxf6 {[%emt 0:00:02]} 31. gxf6 {[%emt 0:02:39]} Qg3 {[%emt 0:00:13]} 32. Rh5 {[%emt 0:06:49]} Kf7 {[%emt 0:00:27]} 33. Rxh7+ {[%emt 0:00:46]} Ke6 {[%emt 0:00:11]} 34. dxe5 {[%emt 0:02:57]} Nxe5 {[%emt 0:03:59]} 35. Qh6 {[%emt 0:08:37]} Ng6 {[%emt 0:07:04]} 36. Rxd7 {[%emt 0:02:13]} Qxf3 {[%emt 0:00:20]} 37. Re7+ {[%emt 0:05:19]} Kxf6 {[%emt 0:00:08]} 38. Qg7+ {[%emt 0:00:40]} Kg5 {[%emt 0:00:13]} 39. Rg1+ {[%emt 0:00:32]} Kh4 {[%emt 0:02:21]} 40. Qh6+ {[%emt 0:00:36]} Qh5 {[%emt 0:00:07]} 41. Qxh5+ {[%emt 0:30:15]} Kxh5 {[%emt 0:30:03]} 42. Rh7# {[%emt 0:00:03]} *

[Event "Nordic Chess-ch 2019"]
[Site "Sarpsborg"]
[Date "2019.06.26"]
[Round "8.25"]
[White "Kreken, Eivind Grunt"]
[Black "Berisha, Xhafer"]
[Result "*"]
[ECO "A65"]
[WhiteElo "1784"]
[BlackElo "1340"]
[Annotator "NA RC"]
[PlyCount "75"]
[EventDate "2019.06.21"]
[EventType "swiss"]
[EventCountry "NOR"]
[SourceTitle "playchess.com"]
[Source "ChessBase"]
[SourceQuality "1"]
[TimeControl "40/5400+30:1800+30"]

1. d4 {[%emt 0:00:00]} e6 {[%emt 0:03:56]} 2. c4 {[%emt 0:00:00]} Nf6 {[%emt 0:00:15]} 3. Nc3 {[%emt 0:00:03]} c5 {[%emt 0:00:23]} 4. d5 {[%emt 0:00:17]} d6 {[%emt 0:00:14]} 5. e4 {[%emt 0:03:03]} Be7 {[%emt 0:00:03]} 6. f4 {[%emt 0:04:28]} O-O {[%emt 0:00:19]} 7. Nf3 {[%emt 0:02:28]} exd5 {[%emt 0:00:25]} 8. cxd5 {[%emt 0:00:16]} Ng4 {[%emt 0:00:20]} 9. Bd3 {[%emt 0:02:06]} a6 {[%emt 0:00:52]} 10. a4 {[%emt 0:00:48]} Nd7 {[%emt 0:00:17]} 11. O-O {[%emt 0:02:38]} Qb6 {[%emt 0:00:27]} 12. Bc4 {[%emt 0:01:17]} Qd8 {[%emt 0:00:44]} 13. h3 {[%emt 0:02:50]} Ngf6 {[%emt 0:00:12]} 14. e5 {[%emt 0:02:18]} dxe5 {[%emt 0:00:17]} 15. fxe5 {[%emt 0:00:16]} Nh5 {[%emt 0:00:31]} 16. g4 {[%emt 0:17:01]} Ng3 {[%emt 0:00:31]} 17. Re1 {[%emt 0:05:49]} Nb6 {[%emt 0:03:36]} 18. Bd3 {[%emt 0:00:33]} c4 {[%emt 0:00:10]} 19. Bc2 {[%emt 0:01:30]} h5 {[%emt 0:00:44]} 20. g5 {[%emt 0:13:15]} Nf5 {[%emt 0:00:57]} 21. d6 {[%emt 0:00:34]} Nxd6 {[%emt 0:02:17]} 22. exd6 {[%emt 0:00:41]} Bxd6 {[%emt 0:00:03]} 23. a5 {[%emt 0:03:23]} Bc5+ {[%emt 0:01:41]} 24. Be3 {[%emt 0:01:29]} Qc7 {[%emt 0:01:31]} 25. Kg2 {[%emt 0:01:38]} h4 {[%emt 0:02:18]} 26. Bxc5 {[%emt 0:03:29]} Qg3+ {[%emt 1:19:57]} 27. Kh1 {[%emt 0:00:49]} Qxh3+ {[%emt 0:00:00]} 28. Nh2 {[%emt 0:00:21]} Bd7 {[%emt 0:00:00]} 29. Bxf8 {[%emt 0:01:07]} Rxf8 {[%emt 0:00:00]} 30. axb6 {[%emt 0:00:48]} Qg3 {[%emt 0:00:00]} 31. Qxd7 {[%emt 0:00:27]} h3 {[%emt 0:00:00]} 32. Qxb7 {[%emt 0:00:56]} Qxg5 {[%emt 0:00:00]} 33. Qe4 {[%emt 0:00:44]} g6 {[%emt 0:00:00]} 34. b7 {[%emt 0:00:40]} Qg3 {[%emt 0:00:00]} 35. Rxa6 {[%emt 0:00:54]} Kg7 {[%emt 0:00:00]} 36. Rg1 {[%emt 0:00:36]} Qc7 {[%emt 0:00:00]} 37. Raxg6+ {[%emt 0:00:19]} fxg6 {[%emt 0:00:00]} 38. Qxg6+ {[%emt 0:00:06]} *

[Event "Nordic Chess-ch 2019"]
[Site "Sarpsborg"]
[Date "2019.06.26"]
[Round "8.26"]
[White "Johansen, Torbjorn Reidar"]
[Black "Granholt, Morten"]
[Result "1-0"]
[ECO "B70"]
[WhiteElo "1754"]
[BlackElo "1478"]
[Annotator "NA RC"]
[PlyCount "55"]
[EventDate "2019.06.21"]
[EventType "swiss"]
[EventCountry "NOR"]
[SourceTitle "playchess.com"]
[Source "ChessBase"]
[SourceQuality "1"]
[TimeControl "40/5400+30:1800+30"]

1. e4 {[%emt 0:02:33]} c5 {[%emt 0:00:00]} 2. Nf3 {[%emt 0:00:23]} d6 {[%emt 0:00:00]} 3. d4 {[%emt 0:00:05]} cxd4 {[%emt 0:00:01]} 4. Nxd4 {[%emt 0:00:06]} Nf6 {[%emt 0:00:09]} 5. Nc3 {[%emt 0:00:38]} g6 {[%emt 0:00:33]} 6. Bc4 {[%emt 0:04:16]} Bg7 {[%emt 0:01:55]} 7. Bb3 {[%emt 0:00:07]} O-O {[%emt 0:00:32]} 8. O-O {[%emt 0:00:05]} Nc6 {[%emt 0:00:17]} 9. Kh1 {[%emt 0:02:54]} Bd7 {[%emt 0:00:22]} 10. f4 {[%emt 0:02:04]} Nxd4 {[%emt 0:12:37]} 11. Qxd4 {[%emt 0:00:10]} e5 {[%emt 0:00:34]} 12. Qxd6 {[%emt 0:00:26]} Ng4 {[%emt 0:02:15]} 13. Qd3 {[%emt 0:01:35]} Qh4 {[%emt 0:02:49]} 14. Qg3 {[%emt 0:00:47]} Qxg3 {[%emt 0:00:32]} 15. hxg3 {[%emt 0:00:06]} Bc6 {[%emt 0:03:51]} 16. f5 {[%emt 0:01:45]} Rad8 {[%emt 0:03:49]} 17. Nd5 {[%emt 0:01:04]} Rd7 {[%emt 0:06:55]} 18. fxg6 {[%emt 0:05:57]} hxg6 {[%emt 0:00:34]} 19. Bg5 {[%emt 0:00:23]} Bxd5 {[%emt 0:09:03]} 20. Bxd5 {[%emt 0:00:16]} Kh7 {[%emt 0:00:38]} 21. Rf3 {[%emt 0:02:08]} f6 {[%emt 0:07:27]} 22. Be6 {[%emt 0:01:15]} Rc7 {[%emt 0:05:19]} 23. Bxg4 {[%emt 0:00:28]} fxg5 {[%emt 0:00:12]} 24. Rxf8 {[%emt 0:01:35]} Bxf8 {[%emt 0:00:11]} 25. c3 {[%emt 0:00:15]} Rc4 {[%emt 0:00:43]} 26. Re1 {[%emt 0:00:39]} Bc5 {[%emt 0:00:21]} 27. Re2 {[%emt 0:01:25]} a5 {[%emt 0:01:39]} 28. Be6 {[%emt 0:00:07]} 1-0

[Event "Nordic Chess-ch 2019"]
[Site "Sarpsborg"]
[Date "2019.06.26"]
[Round "8.27"]
[White "Strand, Vetle Bjorge"]
[Black "Henriksen, Morgan"]
[Result "*"]
[ECO "D15"]
[WhiteElo "1609"]
[BlackElo "1717"]
[Annotator "NA RC"]
[PlyCount "74"]
[EventDate "2019.06.21"]
[EventType "swiss"]
[EventCountry "NOR"]
[SourceTitle "playchess.com"]
[Source "ChessBase"]
[SourceQuality "1"]
[TimeControl "40/5400+30:1800+30"]

1. d4 {[%emt 0:00:00]} d5 {[%emt 0:00:00]} 2. c4 {[%emt 0:00:00]} c6 {[%emt 0:00:00]} 3. Nf3 {[%emt 0:00:00]} Nf6 {[%emt 0:00:00]} 4. Nc3 {[%emt 0:00:00]} a6 {[%emt 0:00:00]} 5. cxd5 {[%emt 0:00:08]} cxd5 {[%emt 0:00:12]} 6. Bg5 {[%emt 0:00:08]} e6 {[%emt 0:02:42]} 7. e3 {[%emt 0:00:06]} Nc6 {[%emt 0:01:15]} 8. Be2 {[%emt 0:01:00]} Be7 {[%emt 0:00:08]} 9. O-O {[%emt 0:00:07]} O-O {[%emt 0:00:06]} 10. Rc1 {[%emt 0:00:23]} Bd7 {[%emt 0:00:48]} 11. h3 {[%emt 0:01:09]} Rc8 {[%emt 0:02:29]} 12. a3 {[%emt 0:01:21]} Ne8 {[%emt 0:02:06]} 13. Bxe7 {[%emt 0:01:03]} Qxe7 {[%emt 0:00:09]} 14. Na4 {[%emt 0:01:09]} Nd6 {[%emt 0:00:59]} 15. Nc5 {[%emt 0:03:16]} Be8 {[%emt 0:03:02]} 16. Bd3 {[%emt 0:09:52]} f6 {[%emt 0:01:05]} 17. Qc2 {[%emt 0:06:46]} g6 {[%emt 0:01:22]} 18. Qe2 {[%emt 0:14:04]} Bf7 {[%emt 0:06:56]} 19. Nh2 {[%emt 0:04:55]} e5 {[%emt 0:05:05]} 20. dxe5 {[%emt 0:00:34]} fxe5 {[%emt 0:06:58]} 21. Ng4 {[%emt 0:03:38]} Kg7 {[%emt 0:01:12]} 22. Rfd1 {[%emt 0:04:58]} e4 {[%emt 0:12:02]} 23. Bb1 {[%emt 0:01:45]} Rfd8 {[%emt 0:16:19]} 24. Qd2 {[%emt 0:09:45]} h5 {[%emt 0:06:12]} 25. Nh2 {[%emt 0:05:41]} Kh7 {[%emt 0:04:53]} 26. Ba2 {[%emt 0:02:24]} Nc4 {[%emt 0:04:18]} 27. Qe2 {[%emt 0:09:59]} N6e5 {[%emt 0:02:22]} 28. Nb3 {[%emt 0:02:30]} Qg5 {[%emt 0:04:49]} 29. Kh1 {[%emt 0:01:12]} Rd6 {[%emt 0:00:58]} 30. Nd4 {[%emt 0:01:59]} Rf8 {[%emt 0:01:49]} 31. Bb1 {[%emt 0:03:05]} Rf6 {[%emt 0:04:05]} 32. Rf1 {[%emt 0:09:47]} Be8 {[%emt 0:00:41]} 33. Rcd1 {[%emt 0:01:51]} Qh4 {[%emt 0:03:15]} 34. f4 {[%emt 0:00:48]} exf3 {[%emt 0:00:33]} 35. Nhxf3 {[%emt 0:00:15]} Qg3 {[%emt 0:02:16]} 36. a4 {[%emt 0:00:54]} Bxa4 {[%emt 0:01:32]} 37. b3 {[%emt 0:00:24]} Be8 {[%emt 0:05:52]} *

[Event "Nordic Chess-ch 2019"]
[Site "Sarpsborg"]
[Date "2019.06.26"]
[Round "8.28"]
[White "Hanebuth, Katja"]
[Black "Kro, Andreas Fuskeland"]
[Result "*"]
[ECO "C11"]
[WhiteElo "1463"]
[BlackElo "1565"]
[Annotator "NA RC"]
[PlyCount "57"]
[EventDate "2019.06.21"]
[EventType "swiss"]
[EventCountry "NOR"]
[SourceTitle "playchess.com"]
[Source "ChessBase"]
[SourceQuality "1"]
[TimeControl "40/5400+30:1800+30"]

1. e4 {[%emt 0:00:23]} e6 {[%emt 0:00:00]} 2. d4 {[%emt 0:00:10]} d5 {[%emt 0:00:00]} 3. Nc3 {[%emt 0:00:18]} Nf6 {[%emt 0:00:00]} 4. Bd3 {[%emt 0:04:06]} c5 {[%emt 0:05:09]} 5. Bb5+ {[%emt 0:07:24]} Nc6 {[%emt 0:02:30]} 6. e5 {[%emt 0:01:08]} Nd7 {[%emt 0:01:07]} 7. Nf3 {[%emt 0:00:57]} cxd4 {[%emt 0:02:17]} 8. Nxd4 {[%emt 0:07:06]} Ncxe5 {[%emt 0:06:29]} 9. Qe2 {[%emt 0:03:32]} Ng6 {[%emt 0:05:07]} 10. Nxe6 {[%emt 0:05:31]} fxe6 {[%emt 0:02:17]} 11. Qxe6+ {[%emt 0:00:29]} Qe7 {[%emt 0:00:16]} 12. Qxe7+ {[%emt 0:01:01]} Nxe7 {[%emt 0:01:37]} 13. O-O {[%emt 0:00:16]} a6 {[%emt 0:00:17]} 14. Ba4 {[%emt 0:00:51]} b5 {[%emt 0:08:40]} 15. Bb3 {[%emt 0:10:15]} Bb7 {[%emt 0:00:44]} 16. Re1 {[%emt 0:00:43]} Nb6 {[%emt 0:01:23]} 17. Bg5 {[%emt 0:01:32]} h6 {[%emt 0:05:44]} 18. Re6 {[%emt 0:03:01]} hxg5 {[%emt 0:07:16]} 19. Rxb6 {[%emt 0:00:26]} Bc6 {[%emt 0:03:27]} 20. Re1 {[%emt 0:02:55]} Kd7 {[%emt 0:02:38]} 21. a4 {[%emt 0:04:28]} Kc7 {[%emt 0:05:56]} 22. a5 {[%emt 0:00:14]} d4 {[%emt 0:09:38]} 23. Rxc6+ {[%emt 0:12:01]} Nxc6 {[%emt 0:00:51]} 24. Nd5+ {[%emt 0:00:59]} Kb7 {[%emt 0:02:45]} 25. Nb6 {[%emt 0:01:18]} Bb4 {[%emt 0:01:46]} 26. Re6 {[%emt 0:08:36]} Rae8 {[%emt 0:00:36]} 27. Nd7 {[%emt 0:04:35]} Rxe6 {[%emt 0:01:01]} 28. Bxe6 {[%emt 0:03:19]} Re8 {[%emt 0:00:23]} 29. Ne5 {[%emt 0:01:36]} *

[Event "Nordic Chess-ch 2019"]
[Site "Sarpsborg"]
[Date "2019.06.26"]
[Round "8.29"]
[White "Skaar, Ben Samuel Groth"]
[Black "Kristiansen, Terje"]
[Result "1-0"]
[ECO "B31"]
[WhiteElo "1362"]
[BlackElo "1330"]
[Annotator "NA RC"]
[PlyCount "29"]
[EventDate "2019.06.21"]
[EventType "swiss"]
[EventCountry "NOR"]
[SourceTitle "playchess.com"]
[Source "ChessBase"]
[SourceQuality "1"]
[TimeControl "40/5400+30:1800+30"]

1. e4 {[%emt 0:00:00]} c5 {[%emt 0:00:00]} 2. Nf3 {[%emt 0:00:00]} Nc6 {[%emt 0:00:00]} 3. Bb5 {[%emt 0:00:00]} g6 {[%emt 0:00:11]} 4. O-O {[%emt 0:00:44]} Bg7 {[%emt 0:00:02]} 5. Re1 {[%emt 0:00:52]} e6 {[%emt 0:01:44]} 6. c3 {[%emt 0:04:40]} Nge7 {[%emt 0:05:23]} 7. Bxc6 {[%emt 0:07:19]} Nxc6 {[%emt 0:03:07]} 8. d4 {[%emt 0:05:44]} cxd4 {[%emt 0:00:12]} 9. cxd4 {[%emt 0:00:03]} d5 {[%emt 0:03:38]} 10. exd5 {[%emt 0:02:28]} Qxd5 {[%emt 0:00:02]} 11. Nc3 {[%emt 0:00:16]} Qd6 {[%emt 0:04:32]} 12. Nb5 {[%emt 0:14:42]} Qb8 {[%emt 0:02:41]} 13. d5 {[%emt 0:01:15]} Ne5 {[%emt 0:04:44]} 14. Nxe5 {[%emt 0:02:11]} Bxe5 {[%emt 0:00:03]} 15. d6 {[%emt 0:00:08]} 1-0

[Event "Nordic Chess-ch 2019"]
[Site "Sarpsborg"]
[Date "2019.06.26"]
[Round "8.30"]
[White "Tenold, Andreas"]
[Black "Nizar, Siako"]
[Result "*"]
[ECO "B22"]
[WhiteElo "1959"]
[BlackElo "1209"]
[Annotator "NA RC"]
[PlyCount "51"]
[EventDate "2019.06.21"]
[EventType "swiss"]
[EventCountry "NOR"]
[SourceTitle "playchess.com"]
[Source "ChessBase"]
[SourceQuality "1"]
[TimeControl "40/5400+30:1800+30"]

1. e4 {[%emt 0:00:00]} e6 {[%emt 0:00:00]} 2. d4 {[%emt 0:00:00]} c5 {[%emt 0:00:17]} 3. c3 {[%emt 0:00:29]} a6 {[%emt 0:00:27]} 4. a4 {[%emt 0:00:26]} cxd4 {[%emt 0:01:26]} 5. cxd4 {[%emt 0:00:23]} d5 {[%emt 0:07:41]} 6. Nc3 {[%emt 0:03:38]} dxe4 {[%emt 0:00:50]} 7. Nxe4 {[%emt 0:00:21]} Nc6 {[%emt 0:00:10]} 8. Nf3 {[%emt 0:00:08]} Nge7 {[%emt 0:02:13]} 9. Bc4 {[%emt 0:00:58]} Nf5 {[%emt 0:06:16]} 10. d5 {[%emt 0:05:57]} Bb4+ {[%emt 0:05:16]} 11. Nc3 {[%emt 0:00:30]} exd5 {[%emt 0:01:22]} 12. Bxd5 {[%emt 0:04:28]} Bxc3+ {[%emt 0:00:28]} 13. bxc3 {[%emt 0:00:15]} Qc7 {[%emt 0:00:57]} 14. O-O {[%emt 0:02:56]} O-O {[%emt 0:01:56]} 15. Ba3 {[%emt 0:01:21]} Rd8 {[%emt 0:07:51]} 16. Qb3 {[%emt 0:00:44]} Nd6 {[%emt 0:09:27]} 17. Ng5 {[%emt 0:04:28]} Ne5 {[%emt 0:18:20]} 18. Bxd6 {[%emt 0:05:22]} Rxd6 {[%emt 0:01:44]} 19. Rfe1 {[%emt 0:02:08]} Rb6 {[%emt 0:11:44]} 20. Bxf7+ {[%emt 0:05:01]} Kh8 {[%emt 0:02:02]} 21. Qd5 {[%emt 0:00:44]} h6 {[%emt 0:02:20]} 22. Rxe5 {[%emt 0:02:02]} hxg5 {[%emt 0:01:18]} 23. Re8+ {[%emt 0:02:16]} Kh7 {[%emt 0:00:05]} 24. Qd3+ {[%emt 0:00:33]} g6 {[%emt 0:00:37]} 25. Qd4 {[%emt 0:01:02]} Qxc3 {[%emt 0:01:25]} 26. Rh8# {[%emt 0:00:12]} *